fUST/lending_fUST_20250102
["ID","MTS","AMOUNT","RATE_DAILY","PERIOD"]
[347430004,1735794663168,-365.9354875,0.00022301,2]
[347430005,1735794663178,-782.47648865,0.00022304,2]
[347430006,1735794663187,-3000.79926017,0.00022323,2]
[347430007,1735794663197,-823.0,0.00022336,2]
[347430008,1735794663207,-1000.0,0.00022354,2]
[347430009,1735794663218,-458.3385471,0.00022426,2]
[347430010,1735794663229,-153.0,0.00022438,2]
[347430011,1735794663239,-153.0,0.00022438,2]
[347430012,1735794663248,-153.0,0.00022438,2]
[347430013,1735794663258,-308.0875379,0.00022438,2]
[347430014,1735794663268,-153.0,0.00022438,2]
[347430015,1735794663278,-289.1137652,0.00022438,2]
[347430016,1735794663289,-3000.79926017,0.00022443,2]
[347430017,1735794663298,-1000.0,0.00022447,2]
[347430018,1735794663312,-500.0,0.00022457,3]
[347430019,1735794663321,-500.0,0.00022457,3]
[347430020,1735794663331,-3368.58,0.00022457,3]
[347430021,1735794663342,-534.12,0.00022457,3]
[347430022,1735794663352,-1775.41,0.00022457,3]
[347430023,1735794663362,-1212.23,0.00022457,3]
[347430024,1735794663372,-561.38,0.00022457,3]
[347430025,1735794663384,-151.0,0.00022457,7]
[347430026,1735794663394,-500.0,0.00022457,3]
[347430027,1735794663404,-500.0,0.00022458,3]
[347430028,1735794663413,-500.0,0.00022458,3]
[347430029,1735794663422,-500.0,0.00022458,3]
[347430030,1735794663432,-738.55,0.00022458,3]
[347430031,1735794663442,-707.22,0.00022458,3]
[347430032,1735794663451,-500.0,0.00022458,3]
[347430033,1735794663460,-509.53,0.00022458,3]
[347430034,1735794663471,-582.11,0.00022458,3]
[347430035,1735794663480,-500.0,0.00022458,3]
[347430036,1735794663489,-500.0,0.00022458,3]
[347430037,1735794663498,-1829.75,0.00022458,3]
[347430038,1735794663508,-779.37,0.00022458,3]
[347430039,1735794663517,-577.85,0.00022458,3]
[347430040,1735794663527,-1149.49,0.00022458,3]
[347430041,1735794663536,-1427.8,0.00022458,3]
[347430042,1735794663545,-474.95,0.00022458,3]
[347430043,1735794663555,-541.60971279,0.00022458,3]
[347430044,1735794663564,-1331.34,0.00022458,3]
[347430045,1735794663574,-604.16,0.00022458,3]
[347430046,1735794663583,-860.85,0.00022458,3]
[347430047,1735794663592,-1449.18,0.00022458,3]
[347430048,1735794663602,-500.0,0.00022458,3]
[347430049,1735794663611,-152.02729,0.00022458,7]
[347430050,1735794663620,-500.0,0.00022458,3]
[347430051,1735794663629,-1189.92,0.00022458,2]
[347430052,1735794663639,-847.21,0.00022458,3]
[347430053,1735794663648,-517.7,0.00022458,3]
[347430054,1735794663657,-1081.19,0.00022458,3]
[347430055,1735794663666,-511.5,0.00022458,3]
[347430056,1735794663676,-769.73,0.00022458,3]
[347430057,1735794663685,-571.1,0.00022458,3]
[347430058,1735794663695,-180.293254,0.00022459,7]
[347430059,1735794663704,-180.293254,0.00022459,7]
[347430060,1735794663714,-524.61,0.00022459,3]
[347430061,1735794663725,-23779.58,0.00022459,3]
[347430062,1735794663734,-814.17,0.00022459,3]
[347430063,1735794663743,-398.440154,0.00022461,7]
[347430064,1735794663753,-398.440154,0.00022461,7]
[347430065,1735794663763,-500.0,0.00022461,3]
[347430066,1735794663843,-500.0,0.00022461,3]
[347430067,1735794663853,-451.084782,0.00022461,7]
[347430068,1735794663862,-451.084782,0.00022461,7]
[347430069,1735794663872,-797.53,0.00022461,3]
[347430070,1735794663882,-151.0,0.00022461,7]
[347430071,1735794663891,-784.26,0.00022461,3]
[347430072,1735794663901,-500.0,0.00022461,3]
[347430073,1735794663911,-500.0,0.00022461,3]
[347430074,1735794663921,-151.0,0.00022461,7]
[347430075,1735794663931,-500.0,0.00022461,3]
[347430076,1735794663941,-500.0,0.00022461,3]
[347430077,1735794663951,-848.74,0.00022461,3]
[347430078,1735794663960,-500.06,0.00022461,3]
[347430079,1735794663972,-295.2191998,0.00022461,3]
[347430080,1735794663982,-560.2,0.00022461,3]
[347430081,1735794663991,-2528.29,0.00022461,3]
[347430082,1735794664001,-2256.4,0.00022462,3]
[347430083,1735794664011,-500.0,0.00022462,3]
[347430084,1735794664021,-151.0,0.00022462,7]
[347430085,1735794664031,-151.0,0.00022462,7]
[347430086,1735794664041,-588.09,0.00022462,3]
[347430087,1735794664050,-500.0,0.00022462,3]
[347430088,1735794664060,-500.0,0.00022462,3]
[347430089,1735794664070,-500.0,0.00022462,3]
[347430090,1735794664079,-350.4777623,0.00022462,3]
[347430091,1735794664089,-500.0,0.00022463,3]
[347430092,1735794664098,-500.0,0.00022463,3]
[347430093,1735794664108,-500.0,0.00022465,3]
[347430094,1735794664117,-1881.75,0.00022465,3]
[347430095,1735794664127,-500.0,0.00022465,3]
[347430096,1735794664137,-1108.5,0.00022465,3]
[347430097,1735794664146,-500.0,0.00022465,3]
[347430098,1735794664156,-1159.6,0.00022465,3]
[347430099,1735794664165,-155.05,0.0002248,2]
[347430100,1735794664175,-151.0,0.0002248,7]
[347430101,1735794664185,-151.0,0.0002248,7]
[347430102,1735794664195,-299.455776,0.0002248,7]
[347430103,1735794664205,-299.455776,0.0002248,7]
[347430104,1735794664215,-749.821253,0.0002248,7]
[347430105,1735794664228,-749.821253,0.0002248,7]
[347430106,1735794664237,-165.495263,0.0002248,7]
[347430107,1735794664246,-165.495263,0.0002248,7]
[347430108,1735794664256,-3451.61423623,0.000225,2]
[347430109,1735794664266,-3451.6142362,0.000225,2]
[347430110,1735794664275,-3451.6142362,0.000225,2]
[347430111,1735794664285,-10846.51702306,0.00022556,2]
[347430112,1735794664297,-3000.79926017,0.00022563,2]
[347430113,1735794664308,-502.18744537,0.00022579,3]
[347430114,1735794664318,-88759.72215267,0.0002258,60]
[347430115,1735794664327,-590.277295,0.0002258,7]
[347430116,1735794664338,-264.465907,0.0002258,7]
[347430117,1735794664349,-264.465907,0.0002258,7]
[347430118,1735794664359,-398.440154,0.0002258,7]
[347430119,1735794664369,-398.440154,0.0002258,7]
[347430120,1735794664379,-180.293254,0.0002258,7]
[347430121,1735794664390,-180.293254,0.0002258,7]
[347430122,1735794664399,-164.305224,0.0002258,7]
[347430123,1735794664409,-164.305224,0.0002258,7]
[347430124,1735794664419,-1134.081463,0.0002258,7]
[347430125,1735794664428,-1134.081463,0.0002258,7]
[347430126,1735794664438,-195.41717,0.0002258,7]
[347430127,1735794664448,-195.41717,0.0002258,7]
[347430128,1735794664458,-1650.444701,0.0002258,7]
[347430129,1735794664470,-1650.444701,0.0002258,7]
[347430130,1735794664480,-1177.416674,0.0002258,7]
[347430131,1735794664489,-1177.416674,0.0002258,7]
[347430132,1735794664500,-151.0,0.0002258,7]
[347430133,1735794664511,-151.0,0.00022604,7]
[347430134,1735794664521,-458.3385471,0.00022637,2]
[347430135,1735794664530,-3451.6142362,0.00022656,2]
[347430136,1735794664540,-451.084782,0.00022656,7]
[347430137,1735794664550,-451.084782,0.00022656,7]
[347430138,1735794664560,-151.0,0.00022656,7]
[347430139,1735794664570,-151.0,0.00022656,7]
[347430140,1735794664581,-3000.79926017,0.00022682,2]
[347430141,1735794664591,-153.11442805,0.00022704,2]
[347430142,1735794664601,-1000.0,0.00022708,2]
[347430143,1735794664611,-500.0,0.00022731,3]
[347430144,1735794664621,-500.0,0.00022731,3]
[347430145,1735794664632,-3368.58,0.00022731,3]
[347430146,1735794664641,-534.12,0.00022731,3]
[347430147,1735794664651,-1775.41,0.00022731,3]
[347430148,1735794664660,-1212.23,0.00022731,3]
[347430149,1735794664670,-561.38,0.00022731,3]
[347430150,1735794664679,-500.0,0.00022731,3]
[347430151,1735794664688,-500.0,0.00022732,3]
[347430152,1735794664698,-500.0,0.00022732,3]
[347430153,1735794664707,-500.0,0.00022732,3]
[347430154,1735794664717,-738.55,0.00022732,3]
[347430155,1735794664726,-707.22,0.00022732,3]
[347430156,1735794664736,-500.0,0.00022732,3]
[347430157,1735794664751,-509.53,0.00022732,3]
[347430158,1735794664824,-582.11,0.00022732,3]
[347430159,1735794664834,-500.0,0.00022732,3]
[347430160,1735794664844,-500.0,0.00022732,3]
[347430161,1735794664853,-1829.75,0.00022732,3]
[347430162,1735794664863,-779.37,0.00022732,3]
[347430163,1735794664872,-577.85,0.00022732,3]
[347430164,1735794664882,-1149.49,0.00022732,3]
[347430165,1735794664891,-1427.8,0.00022732,3]
[347430166,1735794664901,-1331.34,0.00022732,3]
[347430167,1735794664910,-604.16,0.00022732,3]
[347430168,1735794664920,-860.85,0.00022732,3]
[347430169,1735794664929,-1449.18,0.00022732,3]
[347430170,1735794664940,-500.0,0.00022732,3]
[347430171,1735794664949,-550.34168828,0.00022732,3]
[347430172,1735794664959,-1189.92,0.00022732,2]
[347430173,1735794664970,-847.21,0.00022732,3]
[347430174,1735794664980,-517.7,0.00022732,3]
[347430175,1735794664990,-1081.19,0.00022732,3]
[347430176,1735794664999,-511.5,0.00022732,3]
[347430177,1735794665009,-769.73,0.00022732,3]
[347430178,1735794665018,-571.1,0.00022732,3]
[347430179,1735794665027,-524.61,0.00022733,3]
[347430180,1735794665037,-23779.58,0.00022733,3]
[347430181,1735794665046,-814.17,0.00022733,3]
[347430182,1735794665056,-500.0,0.00022735,3]
[347430183,1735794665065,-500.0,0.00022735,3]
[347430184,1735794665075,-797.53,0.00022735,3]
[347430185,1735794665084,-784.26,0.00022735,3]
[347430186,1735794665093,-500.0,0.00022735,3]
[347430187,1735794665103,-500.0,0.00022735,3]
[347430188,1735794665112,-500.0,0.00022735,3]
[347430189,1735794665121,-500.0,0.00022735,3]
[347430190,1735794665130,-848.74,0.00022735,3]
[347430191,1735794665139,-500.06,0.00022735,3]
[347430192,1735794665149,-749.821253,0.00022735,7]
[347430193,1735794665159,-749.821253,0.00022735,7]
[347430194,1735794665168,-560.2,0.00022735,3]
[347430195,1735794665177,-165.495263,0.00022735,7]
[347430196,1735794665187,-165.495263,0.00022735,7]
[347430197,1735794665196,-2528.29,0.00022735,3]
[347430198,1735794665206,-2256.4,0.00022736,3]
[347430199,1735794665215,-500.0,0.00022736,3]
[347430200,1735794665226,-151.0,0.00022736,7]
[347430201,1735794665235,-151.0,0.00022736,7]
[347430202,1735794665245,-588.09,0.00022736,3]
[347430203,1735794665254,-500.0,0.00022736,3]
[347430204,1735794665264,-500.0,0.00022736,3]
[347430205,1735794665273,-500.0,0.00022736,3]
[347430206,1735794665283,-151.0,0.00022737,7]
[347430207,1735794665292,-284.794078,0.00022737,7]
[347430208,1735794665303,-299.455776,0.00022737,7]
[347430209,1735794665314,-299.455776,0.00022737,7]
[347430210,1735794665324,-500.0,0.00022737,3]
[347430211,1735794665333,-500.0,0.00022737,3]
[347430212,1735794665343,-297.80059551,0.00022739,3]
[347430213,1735794665353,-1881.75,0.00022739,3]
[347430214,1735794665363,-500.0,0.00022739,3]
[347430215,1735794665372,-1108.5,0.00022739,3]
[347430216,1735794665382,-500.0,0.00022739,3]
[347430217,1735794665392,-1159.6,0.00022739,3]
[347430218,1735794665401,-10846.51702306,0.00022745,2]
[347430219,1735794665411,-160.0,0.00022767,5]
[347430220,1735794665420,-304.74790172,0.00022767,5]
[347430221,1735794665430,-1000.0,0.00022782,2]
[347430222,1735794665439,-3000.79926017,0.00022802,2]
[347430223,1735794665448,-1741.71828169,0.0002282,2]
[347430224,1735794665458,-458.3385471,0.00022847,2]
[347430225,1735794665467,-155.0,0.00022879,2]
[347430226,1735794665477,-155.0,0.00022879,2]
[347430227,1735794665487,-155.0,0.00022879,2]
[347430228,1735794665496,-155.0,0.00022879,2]
[347430229,1735794665506,-155.0,0.00022879,2]
[347430230,1735794665515,-155.0,0.00022879,2]
[347430231,1735794665525,-155.0,0.00022879,2]
[347430232,1735794665535,-297.45,0.00022879,2]
[347430233,1735794665544,-163.0,0.0002288,2]
[347430234,1735794665554,-163.0,0.0002288,2]
[347430235,1735794665563,-163.72,0.0002288,2]
[347430236,1735794665572,-155.0,0.0002288,2]
[347430237,1735794665582,-155.0,0.0002288,2]
[347430238,1735794665591,-155.0,0.0002288,2]
[347430239,1735794665601,-155.0,0.0002288,2]
[347430240,1735794665610,-155.0,0.0002288,2]
[347430241,1735794665620,-155.0,0.0002288,2]
[347430242,1735794665631,-155.0,0.0002288,2]
[347430243,1735794665640,-155.0,0.0002288,2]
[347430244,1735794665650,-155.0,0.0002288,2]
[347430245,1735794665659,-155.0,0.0002288,2]
[347430246,1735794665668,-155.0,0.0002288,2]
[347430247,1735794665678,-155.0,0.0002288,2]
[347430248,1735794665687,-155.0,0.0002288,2]
[347430249,1735794665696,-155.0,0.0002288,2]
[347430250,1735794665707,-155.0,0.0002288,2]
[347430251,1735794665717,-155.0,0.0002288,2]
[347430252,1735794665728,-155.0,0.0002288,2]
[347430253,1735794665737,-155.0,0.0002288,2]
[347430254,1735794665748,-155.0,0.0002288,2]
[347430255,1735794665757,-188.61,0.0002288,2]
[347430256,1735794665767,-151.0,0.00022918,7]
[347430257,1735794665776,-3000.79926017,0.00022922,2]
[347430258,1735794665786,-1000.0,0.00022923,2]
[347430259,1735794665796,-10846.51702306,0.00022934,2]
[347430260,1735794665805,-10317.53524647,0.00022991,2]
[347430261,1735794665814,-801.6406539,0.00022991,2]
[347430262,1735794665824,-500.0,0.00023005,3]
[347430263,1735794665833,-500.0,0.00023005,3]
[347430264,1735794665843,-3368.58,0.00023005,3]
[347430265,1735794665852,-534.12,0.00023005,3]
[347430266,1735794665863,-1775.41,0.00023005,3]
[347430267,1735794665873,-1212.23,0.00023005,3]
[347430268,1735794665882,-561.38,0.00023005,3]
[347430269,1735794665892,-500.0,0.00023005,3]
[347430270,1735794665901,-500.0,0.00023006,3]
[347430271,1735794665913,-500.0,0.00023006,3]
[347430272,1735794665922,-500.0,0.00023006,3]
[347430273,1735794665931,-738.55,0.00023006,3]
[347430274,1735794665941,-707.22,0.00023006,3]
[347430275,1735794665950,-500.0,0.00023006,3]
[347430276,1735794665960,-509.53,0.00023006,3]
[347430277,1735794665970,-582.11,0.00023006,3]
[347430278,1735794665979,-500.0,0.00023006,3]
[347430279,1735794665989,-500.0,0.00023006,3]
[347430280,1735794665999,-1829.75,0.00023006,3]
[347430281,1735794666008,-779.37,0.00023006,3]
[347430282,1735794666017,-577.85,0.00023006,3]
[347430283,1735794666027,-1149.49,0.00023006,3]
[347430284,1735794666037,-1427.8,0.00023006,3]
[347430285,1735794666046,-1331.34,0.00023006,3]
[347430286,1735794666056,-604.16,0.00023006,3]
[347430287,1735794666065,-860.85,0.00023006,3]
[347430288,1735794666075,-1449.18,0.00023006,3]
[347430289,1735794666084,-500.0,0.00023006,3]
[347430290,1735794666094,-1189.92,0.00023006,2]
[347430291,1735794666104,-847.21,0.00023006,3]
[347430292,1735794666114,-517.7,0.00023006,3]
[347430293,1735794666123,-1081.19,0.00023006,3]
[347430294,1735794666132,-511.5,0.00023006,3]
[347430295,1735794666142,-769.73,0.00023006,3]
[347430296,1735794666151,-571.1,0.00023006,3]
[347430297,1735794666160,-524.61,0.00023007,3]
[347430298,1735794666169,-23779.58,0.00023007,3]
[347430299,1735794666179,-814.17,0.00023007,3]
[347430300,1735794666188,-332.30046688,0.00023009,3]
[347430301,1735794666197,-500.0,0.00023009,3]
[347430302,1735794666207,-797.53,0.00023009,3]
[347430303,1735794666216,-784.26,0.00023009,3]
[347430304,1735794666228,-500.0,0.00023009,3]
[347430305,1735794666237,-500.0,0.00023009,3]
[347430306,1735794666247,-500.0,0.00023009,3]
[347430307,1735794666255,-500.0,0.00023009,3]
[347430308,1735794666265,-848.74,0.00023009,3]
[347430309,1735794666274,-500.06,0.00023009,3]
[347430310,1735794666283,-560.2,0.00023009,3]
[347430311,1735794666292,-1177.416674,0.00023009,7]
[347430312,1735794666305,-1177.416674,0.00023009,7]
[347430313,1735794666314,-2528.29,0.00023009,3]
[347430314,1735794666324,-2256.4,0.0002301,3]
[347430315,1735794666333,-500.0,0.0002301,3]
[347430316,1735794666342,-588.09,0.0002301,3]
[347430317,1735794666352,-500.0,0.0002301,3]
[347430318,1735794666362,-500.0,0.0002301,3]
[347430319,1735794666371,-500.0,0.0002301,3]
[347430320,1735794666380,-293.63956178,0.00023011,3]
[347430321,1735794666390,-500.0,0.00023011,3]
[347430322,1735794666399,-499.0,0.00023013,6]
[347430323,1735794666408,-1881.75,0.00023013,3]
[347430324,1735794666417,-500.0,0.00023013,3]
[347430325,1735794666427,-1108.5,0.00023013,3]
[347430326,1735794666437,-500.0,0.00023013,3]
[347430327,1735794666446,-1159.6,0.00023013,3]
[347430328,1735794666456,-150.0,0.00023014,2]
[347430329,1735794666465,-552.0,0.00023014,2]
[347430330,1735794666477,-500.0,0.00023014,2]
[347430331,1735794666486,-5255.53,0.00023014,3]
[347430332,1735794666495,-1000.0,0.00023031,2]
[347430333,1735794666505,-3000.79926017,0.00023041,2]
[347430334,1735794666514,-1000.0,0.0002305,2]
[347430335,1735794666523,-458.3385471,0.00023058,2]
[347430336,1735794666532,-1000.0,0.00023072,2]
[347430337,1735794666541,-398.440154,0.00023085,7]
[347430338,1735794666550,-398.440154,0.00023085,7]
[347430339,1735794666560,-4352.55038214,0.00023095,14]
[347430340,1735794666568,-451.084782,0.00023095,7]
[347430341,1735794666578,-451.084782,0.00023095,7]
[347430342,1735794666587,-151.0,0.00023095,7]
[347430343,1735794666596,-151.0,0.00023095,7]
[347430344,1735794666606,-151.0,0.00023095,7]
[347430345,1735794666615,-239.75,0.000231,31]
[347430346,1735794666624,-239.75,0.000231,31]
[347430347,1735794666634,-239.75,0.000231,31]
[347430348,1735794666644,-239.75,0.000231,31]
[347430349,1735794666654,-239.75,0.000231,31]
[347430350,1735794666664,-239.75,0.000231,31]
[347430351,1735794666673,-239.75,0.000231,31]
[347430352,1735794666682,-239.75,0.000231,31]
[347430353,1735794666692,-239.75,0.000231,31]
[347430354,1735794666701,-239.75,0.000231,31]
[347430355,1735794666710,-239.75,0.000231,31]
[347430356,1735794666722,-239.75,0.000231,31]
[347430357,1735794666731,-239.75,0.000231,31]
[347430358,1735794666742,-239.75,0.000231,31]
[347430359,1735794666751,-239.75,0.000231,31]
[347430360,1735794666761,-239.75,0.000231,31]
[347430361,1735794666770,-180.293254,0.00023114,7]
[347430362,1735794666779,-180.293254,0.00023114,7]
[347430363,1735794666788,-10846.51702306,0.00023123,2]
[347430364,1735794666797,-590.277295,0.00023123,7]
[347430365,1735794666806,-151.0,0.00023123,7]
[347430366,1735794666815,-151.0,0.00023123,7]
[347430367,1735794666824,-264.465907,0.00023123,7]
[347430368,1735794666833,-264.465907,0.00023123,7]
[347430369,1735794666842,-1000.0,0.00023123,2]
[347430370,1735794666851,-164.305224,0.00023123,7]
[347430371,1735794666860,-164.305224,0.00023123,7]
[347430372,1735794666870,-195.41717,0.00023123,7]
[347430373,1735794666972,-195.41717,0.00023123,7]
[347430374,1735794666982,-1650.444701,0.00023123,7]
[347430375,1735794666992,-1650.444701,0.00023123,7]
[347430376,1735794667001,-1000.0,0.00023149,2]
[347430377,1735794667010,-151.0,0.00023159,7]
[347430378,1735794667019,-151.0,0.00023159,7]
[347430379,1735794667028,-151.0,0.00023159,7]
[347430380,1735794667037,-3000.79926017,0.00023161,2]
[347430381,1735794667046,-158.28506001,0.00023196,2]
[347430382,1735794667055,-297.30628698,0.000232,10]
[347430383,1735794667064,-2000.0,0.000232,2]
[347430384,1735794667073,-2000.0,0.000232,2]
[347430385,1735794667082,-2000.0,0.000232,2]
[347430386,1735794667092,-4011.72,0.000232,14]
[347430387,1735794667101,-1134.081463,0.000232,7]
[347430388,1735794667110,-1134.081463,0.000232,7]
[347430389,1735794667119,-309.5012,0.000232,2]
[347430390,1735794667129,-309.5012,0.000232,2]
[347430391,1735794667138,-181.487824,0.000232,2]
[347430392,1735794667147,-151.0,0.00023221,7]
[347430393,1735794667157,-3962.76,0.00023221,3]
[347430394,1735794667166,-299.455776,0.00023221,7]
[347430395,1735794667175,-299.455776,0.00023221,7]
[347430396,1735794667184,-966.13,0.00023221,3]
[347430397,1735794667193,-500.0,0.00023221,3]
[347430398,1735794667202,-500.0,0.00023221,3]
[347430399,1735794667211,-507.41168509,0.00023221,3]
[347430400,1735794667220,-151.0,0.00023223,7]
[347430401,1735794667231,-211.659976,0.00023223,7]
[347430402,1735794667240,-173.947745,0.00023223,7]
[347430403,1735794667249,-173.947745,0.00023223,7]
[347430404,1735794667258,-173.947745,0.00023223,7]
[347430405,1735794667268,-173.947745,0.00023223,7]
[347430406,1735794667277,-173.947745,0.00023223,7]
[347430407,1735794667287,-173.947745,0.00023223,7]
[347430408,1735794667297,-173.947745,0.00023223,7]
[347430409,1735794667309,-173.947745,0.00023223,7]
[347430410,1735794667319,-173.947745,0.00023223,7]
[347430411,1735794667328,-173.947745,0.00023223,7]
[347430412,1735794667338,-173.947745,0.00023223,7]
[347430413,1735794667349,-173.947745,0.00023223,7]
[347430414,1735794667359,-173.947745,0.00023223,7]
[347430415,1735794667369,-173.947745,0.00023223,7]
[347430416,1735794667380,-173.947745,0.00023223,7]
[347430417,1735794667390,-173.947745,0.00023223,7]
[347430418,1735794667400,-173.947745,0.00023223,7]
[347430419,1735794667410,-173.947745,0.00023223,7]
[347430420,1735794667419,-173.947745,0.00023223,7]
[347430421,1735794667429,-173.947746,0.00023223,7]
[347430422,1735794667439,-151.0,0.00023223,7]
[347430423,1735794667449,-151.0,0.00023223,7]
[347430424,1735794667459,-151.0,0.00023223,7]
[347430425,1735794667468,-151.0,0.00023223,7]
[347430426,1735794667480,-151.0,0.00023223,7]
[347430427,1735794667490,-151.0,0.00023223,7]
[347430428,1735794667500,-151.0,0.00023223,7]
[347430429,1735794667510,-151.0,0.00023223,7]
[347430430,1735794667519,-151.0,0.00023223,7]
[347430431,1735794667528,-154.575898,0.00023223,7]
[347430432,1735794667538,-151.0,0.00023223,7]
[347430433,1735794667548,-151.0,0.00023223,7]
[347430434,1735794667557,-151.0,0.00023223,7]
[347430435,1735794667567,-151.0,0.00023223,7]
[347430436,1735794667576,-151.0,0.00023223,7]
[347430437,1735794667586,-151.0,0.00023223,7]
[347430438,1735794667596,-151.0,0.00023223,7]
[347430439,1735794667605,-151.0,0.00023223,7]
[347430440,1735794667615,-151.0,0.00023223,7]
[347430441,1735794667624,-151.0,0.00023223,7]
[347430442,1735794667634,-151.0,0.00023223,7]
[347430443,1735794667643,-151.0,0.00023223,7]
[347430444,1735794667653,-151.0,0.00023223,7]
[347430445,1735794667662,-151.0,0.00023223,7]
[347430446,1735794667671,-151.0,0.00023223,7]
[347430447,1735794667681,-151.0,0.00023223,7]
[347430448,1735794667690,-294.486314,0.00023223,7]
[347430449,1735794667700,-151.0,0.00023223,7]
[347430450,1735794667710,-151.0,0.00023223,7]
[347430451,1735794667719,-151.0,0.00023223,7]
[347430452,1735794667730,-151.0,0.00023223,7]
[347430453,1735794667739,-151.0,0.00023223,7]
[347430454,1735794667750,-151.0,0.00023223,7]
[347430455,1735794667760,-151.0,0.00023223,7]
[347430456,1735794667769,-151.0,0.00023223,7]
[347430457,1735794667778,-151.0,0.00023223,7]
[347430458,1735794667787,-151.0,0.00023223,7]
[347430459,1735794667796,-151.0,0.00023223,7]
[347430460,1735794667806,-151.0,0.00023223,7]
[347430461,1735794667815,-293.963025,0.00023223,7]
[347430462,1735794667824,-151.0,0.00023223,7]
[347430463,1735794667834,-151.0,0.00023223,7]
[347430464,1735794667845,-151.0,0.00023223,7]
[347430465,1735794667855,-266.443217,0.00023223,7]
[347430466,1735794667864,-274.45125289,0.00023223,2]
[347430467,1735794667874,-2565.3493646,0.00023224,2]
[347430468,1735794667883,-151.0,0.00023224,7]
[347430469,1735794667892,-151.0,0.00023224,7]
[347430470,1735794667902,-500.0,0.00023224,10]
[347430471,1735794667911,-151.33694961,0.00023224,10]
[347430472,1735794667921,-150.24,0.00023224,10]
[347430473,1735794667931,-500.0,0.00023224,10]
[347430474,1735794667941,-150.24,0.00023224,2]
[347430475,1735794667950,-150.24,0.00023224,10]
[347430476,1735794667962,-171.34076796,0.00023224,10]
[347430477,1735794667971,-150.24,0.00023224,10]
[347430478,1735794667981,-219.01009929,0.00023224,10]
[347430479,1735794667990,-150.24,0.00023224,2]
[347430480,1735794667999,-500.0,0.00023224,10]
[347430481,1735794668009,-150.24,0.00023224,2]
[347430482,1735794668018,-150.24,0.00023224,10]
[347430483,1735794668028,-500.0,0.00023228,8]
[347430484,1735794668037,-500.0,0.00023228,8]
[347430485,1735794668046,-151.0,0.00023233,7]
[347430486,1735794668057,-750.0,0.00023255,60]
[347430487,1735794668067,-151.0,0.00023259,7]
[347430488,1735794668076,-151.0,0.00023259,7]
[347430489,1735794668086,-151.0,0.00023259,7]
[347430490,1735794668095,-151.0,0.00023259,7]
[347430491,1735794668104,-151.0,0.00023259,7]
[347430492,1735794668113,-151.0,0.00023259,7]
[347430493,1735794668122,-151.0,0.00023259,7]
[347430494,1735794668132,-250.20075,0.00023259,7]
[347430495,1735794668141,-151.0,0.00023259,7]
[347430496,1735794668151,-151.0,0.00023259,7]
[347430497,1735794668160,-151.0,0.00023259,7]
[347430498,1735794668170,-151.0,0.00023259,7]
[347430499,1735794668179,-151.0,0.00023259,7]
[347430500,1735794668189,-291.098984,0.00023259,7]
[347430501,1735794668198,-156.544207,0.00023259,7]
[347430502,1735794668208,-156.544207,0.00023259,7]
[347430503,1735794668219,-156.544207,0.00023259,7]